Cogmind - Beta 16 @@@ ROGUE MODE // 2025.11.09 @ 22:04:58 Player: Runagate Result: Destroyed by P-80 Master with Gamma Rifle Performance ------------- Evolutions (7) 3500 Regions Visited (11) 2200 Robots Destroyed (208) 1040 Value Destroyed (7204) 7204 Prototype IDs (5) 100 Alien Tech Used (0) 0 Bonus (1061) 1061 TOTAL SCORE: 15105 Bonus ------- High Alert Combat Kills 127 Follower Combat Kills 434 Entered DSFs 500 Cogmind --------- Core Integrity 0/1300 Matter 73/300 Energy 100/100 System Corruption 12% Temperature Cool (0) Movement Core (50) Location -3/Research Parts ------- > --- POWER (2) -------- (None) > --- PROPULSION (6) --- (None) > --- UTILITY (9) ------ (None) > --- WEAPON (4) ------- (None) > --- INVENTORY (5) ---- Seismic Detector Authchip [R/NC] Heavy Phase Cannon Heavy Phase Cannon Missile Launcher Peak State ------------ > --- POWER ------------ Light Fission Core Light Antimatter Reactor > --- PROPULSION ------- Light Treads Advanced Medium Treads Wheel Compact Wheel Compact Wheel Compact Wheel > --- UTILITY ---------- Advanced Heat Sink Advanced Cooling System Advanced Cooling System High-capacity Storage Unit Energy Well Improved Signal Interpreter Hardened Medium Armor Plating Advanced Hardlight Generator Advanced Force Field > --- WEAPON ----------- Advanced Plasma Cannon Nova Cannon Flak Gun KE Penetrator > --- INVENTORY -------- Light Angular Momentum Engine Compact Wheel Cooling System Improved Coolant Injector High-capacity Matter Pod Seismic Detector Improved Hacking Suite Authchip [R/NC] Authchip [R/Combat] High-powered Tractor Beam EM Pulse Cannon Heavy Phase Cannon Heavy Phase Cannon Heavy Phase Cannon Heavy Phase Cannon Heavy Phase Cannon Enhanced Autogun Precision Assault Rifle Missile Launcher Great Maul [Rating: 100] Favorites ----------- Power Hybrid Deuterium Engine Engine Hybrid Deuterium Engine Power Core Light Fission Core Reactor Light Antimatter Reactor Propulsion Light Treads Treads Light Treads Leg Flexi-carbon Leg Wheel Wheel Hover Unit Improved Hover Unit Utility High-capacity Storage Unit Device Seismic Detector Storage High-capacity Storage Unit Processor Improved Signal Interpreter Hackware System Shield Protection Improved Light Armor Plating Weapon Gauss Rifle Energy Gun Small Laser Energy Cannon Heavy Phase Cannon Ballistic Gun Gauss Rifle Ballistic Cannon Heavy Flak Cannon Launcher Missile Launcher Impact Weapon Great Maul Special Melee Weapon Datajack Build | -11 -10 -9 -8 -7 -6 -6 -6 -5 -4 -4 -3 ------- Run | Yrd Mat Mat Mat Fac Fac Ext Cet Fac Fac DSF Res Slots Evolved 14 | . . 2 2 2 2 . . 2 2 . 2 Power 1 | . . . . . . . . 1 . . . Propulsion 4 | . . 2 . . . . . . 1 . 1 Utility 7 | . . . 1 2 2 . . . 1 . 1 Weapon 2 | . . . 1 . . . . 1 . . . Parts Attached 178 | 8 14 34 25 17 12 37 . 7 8 . 16 Power 20 | 1 1 5 5 2 . 3 . . . . 3 Engine 16 | 1 . 5 4 2 . 2 . . . . 2 Core 3 | . 1 . 1 . . 1 . . . . . Reactor 1 | . . . . . . . . . . . 1 Propulsion 48 | 2 1 11 5 3 1 17 . . 3 . 5 Treads 33 | 2 1 7 5 1 1 14 . . 1 . 1 Leg 2 | . . 1 . . . 1 . . . . . Wheel 11 | . . 3 . 2 . . . . 2 . 4 Hover 2 | . . . . . . 2 . . . . . Flight . | . . . . . . . . . . . . Utility 56 | 2 7 8 5 9 7 7 . 4 4 . 3 Device 25 | 1 5 3 1 4 1 3 . 3 2 . 2 Storage 6 | 1 2 1 . . . . . 1 1 . . Processor 4 | . . . . 1 3 . . . . . . Hackware 1 | . . . . . 1 . . . . . . Protection 20 | . . 4 4 4 2 4 . . 1 . 1 Artifact . | . . . . . . . . . . . . Weapon 54 | 3 5 10 10 3 4 10 . 3 1 . 5 Energy Gun 12 | 3 4 2 . 1 . 2 . . . . . Energy Cannon 5 | . . . 1 . . . . 3 . . 1 Ballistic Gun 29 | . . 7 7 2 3 7 . . 1 . 2 Ballistic Cannon 3 | . . . . . 1 . . . . . 2 Launcher 3 | . . 1 1 . . 1 . . . . . Special Weapon . | . . . . . . . . . . . . Impact Weapon 1 | . . . 1 . . . . . . . . Slashing Weapon . | . . . . . . . . . . . . Piercing Weapon . | . . . . . . . . . . . . Special Melee Weapon 1 | . 1 . . . . . . . . . . Unidentified Prototypes 3 | . . 1 . 1 . 1 . . . . . Parts Lost 33 | . 1 2 2 2 1 7 1 1 . . 16 Power 4 | . . . . . . . . . . . 4 Propulsion 17 | . . 1 2 2 1 3 . . . . 8 Utility 7 | . 1 . . . . 1 1 1 . . 3 Weapon 5 | . . 1 . . . 3 . . . . 1 Highest Loss Streak 5 | . 1 1 2 1 1 3 1 1 . . 5 To Critical Strikes . | . . . . . . . . . . . . Average Backups 18 | 2 11 18 19 19 19 19 20 19 19 20 18 Power 1 | . 1 1 1 1 1 2 2 1 1 1 . Propulsion . | . 1 1 1 . . . 1 1 1 1 . Utility 8 | . 4 8 9 8 9 10 10 8 8 9 8 Weapon 7 | 1 4 6 6 8 8 7 7 8 9 9 9 Tool/Special . | . . . . . . . . . . . . Unused Backups 33 | . 2 8 3 5 2 . . 1 . . 12 Power 7 | . 1 2 1 3 . . . . . . . Propulsion . | . . . . . . . . . . . . Utility 11 | . 1 . 1 2 1 . . . . . 6 Weapon 15 | . . 6 1 . 1 . . 1 . . 6 Tool/Special . | . . . . . . . . . . . . Average Slot Usage (%) 96 | . 99 97 98 98 98 93 95 99 99 100 83 Engine 6 | . 4 10 7 7 6 6 . 5 5 5 3 Core 2 | . 9 . 1 . . . 6 5 5 5 2 Treads 27 | . 28 39 35 26 20 21 26 23 18 26 13 Wheel 1 | . . 2 . 1 3 . . . 6 . 5 Device 11 | . 13 9 12 12 7 5 6 13 15 15 19 Storage 8 | . 14 11 9 7 6 6 6 7 10 10 8 Processor 6 | . . . . 6 16 16 13 8 5 5 3 Protection 7 | . . 1 5 9 14 15 15 7 10 10 4 Energy Gun 5 | . 27 7 . 4 . 2 . . . . . Energy Cannon 2 | . . . . 5 . . . 10 10 10 6 Ballistic Gun 13 | . . 14 26 10 15 15 20 11 10 10 6 Peak Build Rating 100 | 7 12 20 29 41 49 52 45 68 85 85 100 Average Rating 37 | 5 9 14 25 36 46 45 42 64 78 85 89 On Entrance 39 | . 7 10 20 29 40 47 45 42 68 85 85 Avg Prop Armor Cover (%) 15 | . . 24 . 14 14 7 . . 12 . 11 Naked Turns 16 | . . . . . . . . . . . 16 Heaviest Build 143 | 14 33 62 68 76 83 75 67 104 115 115 143 Greatest Support 113 | 40 40 80 80 80 80 83 83 83 113 113 113 Greatest Overweight (x) 9 | . . 5 1 7 8 9 . 1 3 1 8 Average Overweight (x) 1 | . . 1 . 1 5 . . . 2 1 5 Largest Inventory Capacity 20 | 8 15 20 20 20 20 20 20 20 20 20 20 Average Capacity 19 | 7 14 19 20 20 20 20 20 20 20 20 19 Most Carried 20 | 4 15 20 20 20 20 20 20 20 20 20 20 Average Carried 18 | 2 11 18 19 19 19 19 20 19 19 20 18 Final Capacity 20 | 8 15 20 20 20 20 20 20 20 20 20 5 Final Carried 20 | 4 15 20 20 20 20 20 20 20 20 20 5 Class Distribution -------------------- 35% | Scavenger-Tank 17% | Mutant 16% | Scavenger-Gunner 14% | Scavenger-Mutant 6% | Scavenger-Skirmisher 5% | Tank Dominant Class ---------------- Mutant | -10/Materials Scavenger-Mutant | -9/Materials Scavenger-Tank | -8/Materials Scavenger-Gunner | -7/Factory Scavenger-Tank | -6/Factory Scavenger-Tank | -6/Extension Scavenger-Tank | -6/Cetus Scavenger-Gunner | -5/Factory Scavenger-Tank | -4/Factory Tank | -4/DSF Scavenger-Tank | -3/Research Resources | -11 -10 -9 -8 -7 -6 -6 -6 -5 -4 -4 -3 ----------- Run | Yrd Mat Mat Mat Fac Fac Ext Cet Fac Fac DSF Res Matter Collected 6622 | 280 439 928 987 581 830 1541 . 280 . . 756 Remotely . | . . . . . . . . . . . . Salvage Created 8749 | 255 618 1664 1244 531 617 1762 . 678 . . 1380 Parts 458 | 22 25 100 74 32 51 68 . 26 . . 60 Haulers Intercepted 8 | . 2 4 1 1 . . . . . . . Recyclers Shooed 12 | . 1 5 . . 1 1 . 1 . . 3 Parts Field Recycled . | . . . . . . . . . . . . Retrieved Matter . | . . . . . . . . . . . . Parts Self-Destructed . | . . . . . . . . . . . . Prevented . | . . . . . . . . . . . . Parts Restored . | . . . . . . . . . . . . Kills | -11 -10 -9 -8 -7 -6 -6 -6 -5 -4 -4 -3 ------- Run | Yrd Mat Mat Mat Fac Fac Ext Cet Fac Fac DSF Res Combat Hostiles Destroyed 142 | . 9 30 26 16 9 27 . 8 . . 17 Guns 101 | . 8 24 26 2 6 25 . 3 . . 7 Cannons 20 | . . . . 5 . . . 5 . . 10 AOE 17 | . . 4 . 9 3 1 . . . . . Classes Destroyed 16 | 3 4 4 1 1 1 2 . . . . . Worker 13 | 2 1 5 . 1 4 . . . . . . Builder 8 | . 1 . 2 . 3 . . . . . 2 Tunneler 11 | 6 . . 1 1 2 . . . . . 1 Hauler 8 | . 2 4 1 1 . . . . . . . Recycler 12 | 1 1 2 . 1 1 2 . 2 . . 2 Mechanic 2 | . . . . . 1 . . . . . 1 Operator 3 | . . 1 . . . 1 . . . . 1 Watcher 8 | . 1 4 1 1 . 1 . . . . . Swarmer 30 | . . 6 3 11 4 3 . . . . 3 Grunt 61 | . 9 14 16 . 1 13 . 4 . . 4 Brawler 1 | . . 1 . . . . . . . . . Sentry 25 | . . 9 6 . 1 7 . . . . 2 Hunter 4 | . . . 1 2 . 1 . . . . . Programmer 18 | . . . . 3 3 1 . 4 . . 7 Behemoth 2 | . . . . . . 1 . . . . 1 Butcher 1 | . . . . . . 1 . . . . . Guerrilla 1 | . . . . . . 1 . . . . . Best Kill Streak 9 | 3 3 5 6 4 9 5 . 4 . . 6 Combat Bots Only 6 | . 3 4 6 4 4 5 . 4 . . 6 Max Kills in Single Turn 4 | 1 1 4 2 4 3 2 . 1 . . 2 Gunslinging 1 | . . 1 1 . . . . . . . . Exploded 4 | . . 4 . 4 3 1 . . . . . Melee . | . . . . . . . . . . . . Uniques/NPCs Destroyed . | . . . . . . . . . . . . Combat | -11 -10 -9 -8 -7 -6 -6 -6 -5 -4 -4 -3 -------- Run | Yrd Mat Mat Mat Fac Fac Ext Cet Fac Fac DSF Res Hostile Shots Fired 1059 | . 51 150 79 70 84 263 9 28 4 41 280 Missed 328 | . 13 33 21 23 28 81 4 7 . 8 110 Hits 731 | . 38 117 58 47 56 182 5 21 4 33 170 Melee 3 | . . 1 . . . . . . . . 2 Projectile 728 | . 38 116 58 47 56 182 5 21 4 33 168 Critical Strikes 31 | . 1 2 5 3 4 3 2 2 . . 9 Actively Blocked 2 | . . . . . . . . . . . 2 Part Disruptions 2 | . . . . . . . . . . . 2 Damage Taken 10986 | . 498 1458 907 730 748 2116 146 493 34 292 3564 Core 2063 | . 78 179 69 102 70 143 . 87 21 7 1307 Absorbed by Shields 933 | . . 43 . . . . . . 24 256 610 Regen/Repaired (Parts) 620 | . . 344 161 . 115 . . . . . . Core Remaining (%) 82 | 100 68 55 87 85 . . 74 91 . 97 . Volleys Fired 462 | 13 49 119 60 28 33 77 . 20 . . 63 Largest 4 | 2 2 2 3 3 3 3 . 4 . . 4 Hottest 272 | 90 90 90 89 188 136 142 . 233 . . 272 Shots Fired 1190 | 26 98 238 180 74 99 208 . 80 . . 187 Gun 1030 | 26 98 237 179 44 95 205 . 40 . . 106 Cannon 148 | . . . . 25 2 . . 40 . . 81 Launcher 12 | . . 1 1 5 2 3 . . . . . Special . | . . . . . . . . . . . . Kinetic 779 | . . 129 177 32 94 182 . 40 . . 125 Thermal 397 | 26 98 108 . 37 3 23 . 40 . . 62 Explosive 12 | . . 1 1 5 2 3 . . . . . Electromagnetic 2 | . . . 2 . . . . . . . . Robot Hit Streak 27 | 6 9 18 23 24 14 27 . 15 . . 11 Robot Miss Streak 8 | 3 6 4 5 4 4 8 . 3 . . 7 Penetration Max 2 | . . . . 1 1 2 . . . . 1 Secondary Targets 9 | . 2 1 2 . . 4 . . . . . Max Gunslinging Chain 1 | . 1 1 1 . . 1 . . . . . Shots Hit Robots 828 | 16 62 180 133 50 55 171 . 41 . . 120 Core Hits 506 | 10 28 68 61 32 36 162 . 31 . . 78 Critical Kills 12 | . . . 1 . 3 8 . . . . . Critical Parts Destroyed 20 | . . . . . 4 13 . . . . 3 Critical Strikes 49 | . 2 9 1 . 7 23 . . . . 7 Burn 12 | . 2 9 . . . 1 . . . . . Destroy 33 | . . . 1 . 7 22 . . . . 3 Blast 4 | . . . . . . . . . . . 4 Melee Attacks 13 | . . . 1 . 12 . . . . . . Impact 13 | . . . 1 . 12 . . . . . . Slashing . | . . . . . . . . . . . . Piercing . | . . . . . . . . . . . . Sneak Attacks . | . . . . . . . . . . . . Combat Hostiles . | . . . . . . . . . . . . Follow-up Attacks . | . . . . . . . . . . . . Damage Inflicted 18912 | 190 774 2835 2305 2062 2050 3418 . 1341 . 17 3920 Guns 12752 | 190 754 2600 2227 662 911 3065 . 499 . . 1844 Cannons 3445 | . . . . 518 42 . . 815 . . 2070 Explosions 2430 | . . 191 . 827 1059 353 . . . . . Melee . | . . . . . . . . . . . . Ramming 285 | . 20 44 78 55 38 . . 27 . 17 6 Kinetic 10874 | . . 1513 2201 526 953 2692 . 499 . . 2490 Thermal 5297 | 190 754 1087 . 654 . 373 . 815 . . 1424 Explosive 2430 | . . 191 . 827 1059 353 . . . . . Electromagnetic 26 | . . . 26 . . . . . . . . Impact . | . . . . . . . . . . . . Slashing . | . . . . . . . . . . . . Piercing . | . . . . . . . . . . . . Highest Corruption 12 | . . . . 1 4 4 4 1 . . 12 Average Corruption 3 | . . . . 1 3 4 4 1 . . 7 Corruption Purged . | . . . . . . . . . . . . Corruption Blocked . | . . . . . . . . . . . . Effects 90 | . . . . 7 25 28 2 5 . . 23 Message Errors 19 | . . . . 2 4 7 . 2 . . 4 Matter Fused 21 | . . . . 1 8 4 . 2 . . 6 Heat Flow Errors 8 | . . . . 1 2 4 . . . . 1 Energy Discharges 15 | . . . . 2 2 5 2 . . . 4 Parts Rejected 4 | . . . . 1 . 2 . . . . 1 Data Loss (minor) 14 | . . . . . 5 5 . . . . 4 Data Loss (major) 3 | . . . . . 1 . . 1 . . 1 Misfires 2 | . . . . . 1 1 . . . . . Alerts 1 | . . . . . 1 . . . . . . Weapon Failures 3 | . . . . . 1 . . . . . 2 Overload Shots . | . . . . . . . . . . . . Overflow Damage 299 | . . 6 . 20 85 . . 14 . . 174 Projectiles 197 | . . . . 9 . . . 14 . . 174 Explosions 102 | . . 6 . 11 85 . . . . . . Melee . | . . . . . . . . . . . . Knockbacks 4 | . 1 . . 1 1 . . . . . 1 Impact 2 | . 1 . . 1 . . . . . . . Kinetic 2 | . . . . . 1 . . . . . 1 Secondary . | . . . . . . . . . . . . Self-Inflicted Damage 62 | . . 20 . 1 6 32 . . . . 3 Shots 2 | . . 1 . . . 1 . . . . . Rammed 36 | . 4 10 7 4 6 . . 2 . 2 1 Targets Rammed 39 | . 5 11 8 4 6 . . 2 . 2 1 Kicked . | . . . . . . . . . . . . Crushed 3 | . 1 1 1 . . . . . . . . Highest Temperature 342 | 90 342 196 8 199 202 236 . 30 . . 188 Average Temperature 72 | 31 117 61 5 45 48 65 . 15 . . 107 Received Heat Transfer 2439 | . 303 508 522 . 99 540 18 63 . 60 326 Siege Activations . | . . . . . . . . . . . . Martial Activations . | . . . . . . . . . . . . Shielding Activations . | . . . . . . . . . . . . Robots Disrupted . | . . . . . . . . . . . . Combat Hostiles . | . . . . . . . . . . . . Robots Corrupted . | . . . . . . . . . . . . Combat Hostiles . | . . . . . . . . . . . . Parts Fried . | . . . . . . . . . . . . Impact Corruptions . | . . . . . . . . . . . . Robots Melted 4 | . 1 2 . . . 1 . . . . . Combat Hostiles 4 | . 1 2 . . . 1 . . . . . Parts Melted 33 | 3 5 12 . 2 . 3 . 2 . . 6 Heat Transferred 10530 | 472 2061 3484 . 1200 . 740 . 777 . . 1796 Parts Sabotaged . | . . . . . . . . . . . . Parts Stolen . | . . . . . . . . . . . . Parts Stripped . | . . . . . . . . . . . . Power Chain Reactions . | . . . . . . . . . . . . Alert | -11 -10 -9 -8 -7 -6 -6 -6 -5 -4 -4 -3 ------- Run | Yrd Mat Mat Mat Fac Fac Ext Cet Fac Fac DSF Res Maximum Alert Level 2 | . . 2 1 . . 2 1 . . . 1 Low Security (%) 71 | 100 100 53 27 100 100 30 . 100 100 100 67 Level 1 24 | . . 37 72 . . 42 100 . . . 32 Level 2 4 | . . 8 . . . 27 . . . . . Level 3 . | . . . . . . . . . . . . Level 4 . | . . . . . . . . . . . . Level 5 . | . . . . . . . . . . . . High Security . | . . . . . . . . . . . . Max Security . | . . . . . . . . . . . . Peak Influence 634 | 5 60 452 381 159 187 634 354 159 . 18 278 Initial 354 | . 3 . 183 159 37 74 354 125 . 3 9 Average 135 | 1 11 207 244 90 52 293 289 48 . 6 95 Influence Increases 5318 | 45 287 994 774 509 457 1373 . 243 5 15 616 Destroy 0b10 Robot/C 3080 | . 180 600 520 320 180 780 . 160 . . 340 Destroy 0b10 Robot/NC 330 | 45 30 80 25 25 55 25 . 10 . . 35 Destroy Leader 704 | . 46 166 144 84 50 94 . 30 . . 90 Allied During Kill 291 | . . . . . . 291 . . . . . Successful Hack 113 | . 31 28 27 18 4 . . . 5 . . Disable Machine 255 | . . 30 . 45 105 . . 15 . . 60 Destroy Structure 200 | . . 15 13 17 48 33 . 28 . . 46 Partial Spotted 15 | . . . . . 15 . . . . . . Lose Combat Pursuer 330 | . . 75 45 . . 150 . . . 15 45 Influence Decreases 5118 | 40 292 560 857 783 380 893 410 467 . 2 434 Entered New Map 955 | . 2 . 251 192 40 80 280 99 . 2 9 Time Decay 3506 | 40 280 530 586 571 330 503 40 361 . . 265 Lost Part 307 | . 10 20 20 20 10 50 10 7 . . 160 Lost Ally 350 | . . 10 . . . 260 80 . . . . Squads Dispatched 29 | . 1 1 6 4 5 4 . 3 . 1 4 Investigation 2 | . 1 . . . . 1 . . . . . Extermination 11 | . . . . 3 3 . . 2 . . 3 Reinforcement 11 | . . 1 3 1 2 2 . 1 . 1 . Assault 1 | . . . . . . 1 . . . . . Garrison 4 | . . . 3 . . . . . . . 1 Intercept . | . . . . . . . . . . . . Searches Triggered . | . . . . . . . . . . . . Construction Impeded 3 | . . . 1 1 1 . . . . . . Haulers Reinforced . | . . . . . . . . . . . . Active Scanning Responses . | . . . . . . . . . . . . Cargo Convoy Interrupts 1 | . . . . . . . . . . . 1 Stealth | -11 -10 -9 -8 -7 -6 -6 -6 -5 -4 -4 -3 --------- Run | Yrd Mat Mat Mat Fac Fac Ext Cet Fac Fac DSF Res Distress Signals 20 | . 3 4 2 . 1 4 1 . . . 5 Communications Jammed . | . . . . . . . . . . . . Distress Signals . | . . . . . . . . . . . . Times Spotted 251 | . 17 49 35 20 17 50 5 10 2 3 43 Peak Tracking Total 13 | . 3 6 4 5 4 7 5 4 2 2 13 Tactical Retreats 18 | . . 4 2 . . 8 . . . 1 3 Traps | -11 -10 -9 -8 -7 -6 -6 -6 -5 -4 -4 -3 ------- Run | Yrd Mat Mat Mat Fac Fac Ext Cet Fac Fac DSF Res Traps Triggered 6 | . 1 1 . . 1 1 . 1 . . 1 Indirectly . | . . . . . . . . . . . . Trap Hack Attempts 22 | . 22 . . . . . . . . . . Triggered . | . . . . . . . . . . . . Disarmed . | . . . . . . . . . . . . Reprogrammed 3 | . 3 . . . . . . . . . . Reused . | . . . . . . . . . . . . Traps Extracted . | . . . . . . . . . . . . Installed . | . . . . . . . . . . . . Triggered . | . . . . . . . . . . . . Machines | -11 -10 -9 -8 -7 -6 -6 -6 -5 -4 -4 -3 ---------- Run | Yrd Mat Mat Mat Fac Fac Ext Cet Fac Fac DSF Res Machines Disabled 17 | . . 2 . 3 7 . . 1 . . 4 Max in Single Turn 2 | . . 1 . 2 2 . . 1 . . 1 Garrison Access 1 | . . . . 1 . . . . . . . Energy Cycler 2 | . . . . . . 2 . . . . . Machines Repaired . | . . . . . . . . . . . . Machines Dismantled . | . . . . . . . . . . . . Machines Sabotaged . | . . . . . . . . . . . . Overloaded Fab Kills . | . . . . . . . . . . . . Hacking | -11 -10 -9 -8 -7 -6 -6 -6 -5 -4 -4 -3 --------- Run | Yrd Mat Mat Mat Fac Fac Ext Cet Fac Fac DSF Res Machines Accessed 42 | . 8 10 10 6 5 . . . 2 . 1 Terminals 33 | . 8 7 8 5 4 . . . 1 . . Fabricators . | . . . . . . . . . . . . Repair Stations 5 | . . 2 1 . 1 . . . . . 1 Recycling Units . | . . . . . . . . . . . . Scanalyzers 2 | . . 1 1 . . . . . . . . Garrison Access 2 | . . . . 1 . . . . 1 . . Total Hacks 108 | . 20 34 30 11 8 . . . 4 . 1 Successful 59 | . 11 23 16 5 3 . . . 1 . . Failed 48 | . 9 10 14 6 5 . . . 3 . 1 Catastrophic 7 | . 1 1 . 1 3 . . . 1 . . Database Lockouts 1 | . . 1 . . . . . . . . . Manual 70 | . 19 17 21 10 3 . . . . . . Terminals 77 | . 20 18 21 10 5 . . . 3 . . Fabricators . | . . . . . . . . . . . . Repair Stations 23 | . . 14 5 . 3 . . . . . 1 Recycling Units . | . . . . . . . . . . . . Scanalyzers 6 | . . 2 4 . . . . . . . . Garrison Access 2 | . . . . 1 . . . . 1 . . Terminal Hacks 6 | . 2 2 . . 1 . . . 1 . . Prototype ID Bank 1 | . 1 . . . . . . . . . . Open Door 1 | . . . . . 1 . . . . . . Open DSF 1 | . . . . . . . . . 1 . . Branch Access Points 1 | . 1 . . . . . . . . . . Terminal Index 1 | . . 1 . . . . . . . . . Locate Traps 1 | . . 1 . . . . . . . . . Fabricator Hacks . | . . . . . . . . . . . . Repair Station Hacks 18 | . . 12 4 . 2 . . . . . . Scan Component 10 | . . 7 2 . 1 . . . . . . Repair 8 | . . 5 2 . 1 . . . . . . Recycling Unit Hacks . | . . . . . . . . . . . . Scanalyzer 3 | . . 1 2 . . . . . . . . Retrieve Study 3 | . . 1 2 . . . . . . . . Garrison Access Hacks 1 | . . . . 1 . . . . . . . Seal Access 1 | . . . . 1 . . . . . . . Unauthorized Hacks 31 | . 9 8 10 4 . . . . . . . Terminals 31 | . 9 8 10 4 . . . . . . . Assimilate 5 | . 2 1 2 . . . . . . . . Botnet 5 | . 1 2 2 . . . . . . . . Operators 3 | . 1 . 1 1 . . . . . . . Skim 18 | . 5 5 5 3 . . . . . . . Fabricators . | . . . . . . . . . . . . Repair Stations . | . . . . . . . . . . . . Recycling Units . | . . . . . . . . . . . . Scanalyzers . | . . . . . . . . . . . . Garrison Access . | . . . . . . . . . . . . Data Cores Recovered 2 | . . 1 . . . . . . . . 1 Used . | . . . . . . . . . . . . Hacking Detections 34 | . 6 9 8 5 3 . . . 2 . 1 Full Trace Events . | . . . . . . . . . . . . Feedback Events . | . . . . . . . . . . . . Feedback Blocked . | . . . . . . . . . . . . Robot Schematics Acquired . | . . . . . . . . . . . . Robots Built . | . . . . . . . . . . . . Authchips . | . . . . . . . . . . . . Time . | . . . . . . . . . . . . Total Robot Build Rating . | . . . . . . . . . . . . Part Schematics Acquired . | . . . . . . . . . . . . Parts Built . | . . . . . . . . . . . . Authchips . | . . . . . . . . . . . . Time . | . . . . . . . . . . . . Total Part Build Rating . | . . . . . . . . . . . . Part Studies Acquired 3 | . . 1 2 . . . . . . . . Parts Repaired 8 | . . 5 2 . 1 . . . . . . Time 238 | . . 148 64 . 26 . . . . . . Parts Recycled . | . . . . . . . . . . . . Recycled Matter . | . . . . . . . . . . . . Retrieved Matter . | . . . . . . . . . . . . Retrieved Components . | . . . . . . . . . . . . Parts Scanalyzed . | . . . . . . . . . . . . Part Schematics Acquired . | . . . . . . . . . . . . Parts Damaged . | . . . . . . . . . . . . Bothacking | -11 -10 -9 -8 -7 -6 -6 -6 -5 -4 -4 -3 ------------ Run | Yrd Mat Mat Mat Fac Fac Ext Cet Fac Fac DSF Res Used RIF Installer . | . . . . . . . . . . . . Robots Hacked . | . . . . . . . . . . . . Non-combat . | . . . . . . . . . . . . Combat . | . . . . . . . . . . . . Robot Hacks Applied . | . . . . . . . . . . . . Relay Couplers Released . | . . . . . . . . . . . . Fabnet Peak Effective % . | . . . . . . . . . . . . Robots Rewired 18 | . . . . . . 18 . . . . . Allies Hacked . | . . . . . . . . . . . . Hacks Repelled . | . . . . . . . . . . . . Allies | -11 -10 -9 -8 -7 -6 -6 -6 -5 -4 -4 -3 -------- Run | Yrd Mat Mat Mat Fac Fac Ext Cet Fac Fac DSF Res Total Allies 20 | . 1 . . . . 19 . . . . . Largest Group 8 | . 1 1 . . . 8 4 . . . . Highest-Rated Group 228 | . 10 10 . . . 228 107 . . . . Highest-Rated Ally 39 | . 10 10 . . . 39 31 . . . . Total Orders . | . . . . . . . . . . . . Ally Attacks 129 | . . . . . . 112 17 . . . . Total Damage 2048 | . . . . . . 1702 346 . . . . Kills 13 | . . . . . . 13 . . . . . Allies Corrupted . | . . . . . . . . . . . . Allies Melted . | . . . . . . . . . . . . Intel | -11 -10 -9 -8 -7 -6 -6 -6 -5 -4 -4 -3 ------- Run | Yrd Mat Mat Mat Fac Fac Ext Cet Fac Fac DSF Res Active Infowar (turns) 7054 | 34 1386 1069 708 1149 1807 826 . 52 23 . . Sensors 2854 | . . . . 1081 1382 391 . . . . . Terrain 189 | . 189 . . . . . . . . . . Structural 37 | . 37 . . . . . . . . . . Seismic 4376 | 34 1160 1069 708 1146 184 . . 52 23 . . Machine Analysis 2134 | . . . . . 1308 826 . . . . . Robot Analysis Total . | . . . . . . . . . . . . Derelict Logs Recovered . | . . . . . . . . . . . . Drone Launches . | . . . . . . . . . . . . Drone Recoveries . | . . . . . . . . . . . . Exploration | -11 -10 -9 -8 -7 -6 -6 -6 -5 -4 -4 -3 ------------- Run | Yrd Mat Mat Mat Fac Fac Ext Cet Fac Fac DSF Res Turns Passed 14375 | 270 1478 2733 1838 1731 2080 1474 84 1041 155 69 1422 Spaces Moved 6380 | 136 655 1302 791 911 946 511 53 392 87 28 568 Core 9 | 1 . . . . . . . . . . 8 Treads 4542 | 135 655 946 791 700 292 482 53 392 16 28 52 Legs 23 | . . . . . . 23 . . . . . Wheels 1800 | . . 356 . 211 654 . . . 71 . 508 Hover 6 | . . . . . . 6 . . . . . Flight . | . . . . . . . . . . . . Fastest Speed 50 | 50 160 145 160 115 160 156 160 160 145 237 50 Average Speed 176 | 159 160 157 160 171 191 190 160 237 161 237 197 Slowest Speed 610 | 160 160 320 240 240 240 610 160 240 237 237 312 Overloaded Moves . | . . . . . . . . . . . . Propulsion Burnouts . | . . . . . . . . . . . . Robots Hopped . | . . . . . . . . . . . . Potential Cave-ins . | . . . . . . . . . . . . Cave-ins Triggered . | . . . . . . . . . . . . Exploration Rate (%) 40 | 9 98 89 69 24 29 71 22 11 3 41 18 Regions Visited 11 Branch Regions 2 Pre-discovered Areas 6 | . 1 4 1 . . . . . . . . Known Exits Taken 7 | . . 1 1 . 1 1 1 1 1 . . Unknown Exits Taken 3 | 1 1 . . 1 . . . . . . . Scrap Searched . | . . . . . . . . . . . . Spaces Dug 17 | . . . 1 . 12 . . 2 . . 2 Terrain Destroyed 189 | . . 11 13 15 60 56 . 14 . . 20 Melee 13 | . . . 1 . 12 . . . . . . Projectile 41 | . . . . 1 3 3 . 14 . . 20 AOE 134 | . . 11 12 14 45 52 . . . . . Terrain Rammed . | . . . . . . . . . . . . Walls Destroyed . | . . . . . . . . . . . . Machines Disabled . | . . . . . . . . . . . . Actions | -11 -10 -9 -8 -7 -6 -6 -6 -5 -4 -4 -3 --------- Run | Yrd Mat Mat Mat Fac Fac Ext Cet Fac Fac DSF Res Total 8437 | 160 976 1759 1225 1010 1109 849 52 459 101 29 708 Wait 851 | . 198 214 282 5 49 31 . 19 . . 53 Move 6370 | 135 654 1301 790 910 945 510 52 391 86 28 568 Hop . | . . . . . . . . . . . . Pick Up 83 | 4 11 26 14 10 9 . . 8 1 . . Fast Attach 44 | 7 1 8 3 3 1 9 . 1 . . 11 Attach 22 | . . 4 4 3 2 1 . 3 2 . 3 Detach 1 | . . 1 . . . . . . . . . Swap 225 | 1 26 40 38 31 31 36 . 8 9 . 5 Drop 133 | . 10 35 25 16 13 20 . 7 3 . 4 Fire 462 | 13 49 119 60 28 33 77 . 20 . . 63 Melee 13 | . . . 1 . 12 . . . . . . Ram 5 | . . 2 . 1 1 . . . . . 1 Kick . | . . . . . . . . . . . . Crush 33 | . 5 9 8 3 5 . . 2 . 1 . Escape Stasis 10 | . . . . . 8 2 . . . . . Rewire 163 | . . . . . . 163 . . . . . Trap 22 | . 22 . . . . . . . . . . Miscellaneous . | . . . . . . . . . . . . Route ------- -11/Scrapyard -10/Materials (discovered 5 exits: *Mat x3 / *Min / [*Sub]) -9/Materials (discovered 5 exits: *Mat x3 / *Min x2) -8/Materials (discovered 2 exits: *Fac x2) -7/Factory (discovered 2 exits: *Fac / Sto) -6/Factory (discovered 2 exits: *Fac / *Ext) -6/Extension (discovered 3 exits: *Fac x2 / *Cet) -6/Cetus -5/Factory -4/Factory -4/DSF -3/Research History --------- Turn | Location | Event 18 | -11/Scrapyard | Discovered new exit (range 16) 271 | -11/Scrapyard | Entered Materials 310 | -10/Materials | Build established: Mutant 327 | -10/Materials | Discovered new exit (range 7) 376 | -10/Materials | Discovered new exit (range 14) 805 | -10/Materials | Discovered new exit (range 12) 947 | -10/Materials | Discovered new exit (range 16) 1468 | -10/Materials | Discovered new exit (range 10) 1544 | -10/Materials | Identified exit to Mines 1622 | -10/Materials | Learned Storage trap positions 1692 | -10/Materials | Learned location of Subcaves (-10) 1704 | -10/Materials | Learned Storage terminal intel 1726 | -10/Materials | Learned Recycling recycling unit intel 1749 | -10/Materials | Entered another Materials area 1749 | -9/Materials | Accompanied by 1 ally 1749 | -9/Materials | Evolved 2 slots: Propulsion x2 1750 | -9/Materials | Identified exit to Materials 1750 | -9/Materials | Identified exit to Mines 2007 | -9/Materials | Repaired Lgt. Treads 2060 | -9/Materials | Repaired Lgt. Treads 2088 | -9/Materials | Repaired Lgt. Treads 2122 | -9/Materials | Repaired Shield Generator 2191 | -9/Materials | Repaired Imp. Heat Sink 2579 | -9/Materials | Central database locked down 2649 | -9/Materials | Build established: Scavenger-Mutant 3008 | -9/Materials | Discovered exit to Materials (range 8) 4009 | -9/Materials | Learned Storage trap positions 4068 | -9/Materials | Learned location of Zion (-7) 4181 | -9/Materials | Learned location of Mines (-8) 4203 | -9/Materials | Learned Storage trap positions 4217 | -9/Materials | Loaded intel: 14 trap records 4229 | -9/Materials | Build established: Mutant 4482 | -9/Materials | Entered another Materials area 4482 | -8/Materials | Evolved 2 slots: Utility x1, Weapon x1 4567 | -8/Materials | Repaired Deuterium Engine 4595 | -8/Materials | Repaired Lgt. Treads 5179 | -8/Materials | Build established: Scavenger-Gunner 5383 | -8/Materials | Garrison activated, responded to threat 5537 | -8/Materials | Learned Storage trap positions 5634 | -8/Materials | Learned Factory trap positions 5652 | -8/Materials | Build established: Scavenger-Tank 5667 | -8/Materials | Learned location of 2 exits from Lower Caves 5688 | -8/Materials | Learned Storage non-interactive machine intel 5698 | -8/Materials | Identified exit to Factory 5716 | -8/Materials | Learned location of 1 exit from Extension 5742 | -8/Materials | Learned location of Extension (-6) 5778 | -8/Materials | Learned Storage security intel 5933 | -8/Materials | Discovered exit to Factory (range 5) 6320 | -8/Materials | Entered Factory 6320 | -7/Factory | Evolved 2 slots: Utility x2 6321 | -7/Factory | Identified exit to Storage 6322 | -7/Factory | Loaded intel: 110 trap records 6617 | -7/Factory | Build established: Scavenger-Gunner 7553 | -7/Factory | Discovered new exit (range 5) 7964 | -7/Factory | Build established: Scavenger-Tank 8051 | -7/Factory | Entered another Factory area 8051 | -6/Factory | Evolved 2 slots: Utility x2 8052 | -6/Factory | Identified exit to Extension 9158 | -6/Factory | Discovered new exit (range 5) 9165 | -6/Factory | Identified exit to Factory 9476 | -6/Factory | Repaired Lgt. Treads 10131 | -6/Factory | Entered Extension 10238 | -6/Extension | Energy Cycler disabled 10238 | -6/Extension | Rescued a captive Derelict 10238 | -6/Extension | Rescued a captive Derelict 10238 | -6/Extension | Rescued a captive Derelict 10239 | -6/Extension | Rescued a captive Derelict 10262 | -6/Extension | Rescued a captive Derelict 10450 | -6/Extension | Lost 3 parts (2n1w) 10456 | -6/Extension | Disrupted transfer network 10685 | -6/Extension | Lost 3 allies 10779 | -6/Extension | Lost 3 allies 11006 | -6/Extension | Spotted B-75 Beast 11018 | -6/Extension | Destroyed B-75 Beast 11094 | -6/Extension | Extracted ID and sensor layout for unrecognized location from A7's data core 11531 | -6/Extension | First assault squad dispatched 11580 | -6/Extension | Discovered exit to Factory (range 10) 11582 | -6/Extension | Discovered new exit (range 6) 11597 | -6/Extension | Identified exit to Cetus 11605 | -6/Extension | Entered Cetus 11605 | -6/Cetus | Accompanied by 4 allies 11625 | -6/Cetus | Spotted Cetus Guard 11626 | -6/Cetus | Spotted Cetus Guard 11628 | -6/Cetus | Spotted Cetus Guard 11629 | -6/Cetus | Spotted Cetus Guard 11665 | -6/Cetus | Discovered exit to Factory (range 15) 11683 | -6/Cetus | Lost 4 allies 11689 | -6/Cetus | Entered Factory 11689 | -5/Factory | Evolved 2 slots: Power x1, Weapon x1 12018 | -5/Factory | Build established: Scavenger-Gunner 12645 | -5/Factory | Discovered new exit (range 8) 12661 | -5/Factory | Identified exit to Factory 12699 | -5/Factory | Build established: Scavenger-Tank 12730 | -5/Factory | Entered another Factory area 12730 | -4/Factory | Evolved 2 slots: Propulsion x1, Utility x1 12885 | -4/Factory | Identified exit to DSF 12885 | -4/Factory | Entered DSF 12921 | -4/DSF | Discovered new exit (range 14) 12928 | -4/DSF | Additional patrols routed to DSF 12952 | -4/DSF | Identified exit to Research 12954 | -4/DSF | Entered Research 12954 | -3/Research | Evolved 2 slots: Propulsion x1, Utility x1 13625 | -3/Research | Lost 3 parts (3n) 13696 | -3/Research | Garrison activated, responded to threat 13790 | -3/Research | Spotted B-86 Titan 13827 | -3/Research | Destroyed B-86 Titan 13894 | -3/Research | Lost 3 parts (1n2u) 13933 | -3/Research | System corruption reached 10% 13957 | -3/Research | Lost 5 parts (1p2n1u1w) 14356 | -3/Research | Cargo convoy interrupted 14358 | -3/Research | Spotted Striker 14358 | -3/Research | Spotted Executioner 14360 | -3/Research | Released all parts (13) 14367 | -3/Research | Core integrity fell below 50% 14373 | -3/Research | Core integrity fell below 20% 14376 | -3/Research | Destroyed by P-80 Master with Gamma Rifle Last Messages --------------- 14367_ Knocked back. 14367_ Penetrated by Slug. 14367_ Slug penetrates Terminal. 14368_ R-10 Processor collects Wheel+. 14368_ U-05 Engineer lays Concrete. 14368_ M-36 Artificer repairs M-36 Artificer Adv. Recalibrator. 14369_ Critical hit (Impale). 14369_ Penetrated by Slug. 14369_ Slug penetrates Quantum Separator. 14369_ U-05 Engineer lays Concrete. 14370_ Knocked back. 14370_ U-05 Engineer lays Concrete. 14371_ M-36 Artificer repairs M-36 Artificer Wheel. 14372_ U-05 Engineer lays Concrete. 14373_ R-10 Processor collects Gamma Rifle. 14373_ U-05 Engineer destroyed. 14374_ U-05 Engineer lays Concrete. 14375_ Penetrated by Slug. Map ----- +----------------------------------------------------+ | ?????????????????????????????????????????????????? | | ?????????????????????????????????????????????????? | | ?????????????????????????????????????????????????? | | ?????????????????????????????????????????????????? | | ?????????????????????????????????????????????????? | | ?????????????????????????????????????????????????? | | ?????????????????????????????????????????????????? | | ?????????????????????????????????????????????????? | | ?????????????????????????????????????????????????? | | ?????????????????????????????????????????????????? | | ??????????????????????????????????##?#########???? | | ?????????????????????????????????# #???? | | ??????????????????????#??????????# #???? | | ??????????????# ??????# ?????????# #???? | | ??????????????# ?????# ????????# #??## | | ??????????????# ????# ????????# #??# | | ??????????????# m???? ???????# "" #??# | | ??????????????# ######+######## """ #??# | | ??????????????# u%! % # #??# | | ??????????????# R!=u i E # #### | | ??????????????# w %m u h % # # %"[ | | ??????????????# %p p # #### | | ???????????????## h |=%* !# #?##[ | | ????????????????# xu !][# * #?# | | ????????????????# K%= !]!#####/########### | | ????????????????# % @! !!!*]=]=% % | | ?????????????#; % u =!!=%]! | | ?????????????## !/![! | | ??????????????### " ] """" | | ???????????????## "" """ | | ???????????????## " """ | | ??????????????? ;i | | ??????????????? # % | | ?????????????? ?# !! | | ????????????? ??# % [ % !! | | ????????????????# % A !! | | ????????? ???# A ^ #########+######+##### | | ????????? # w ^ w #???# %! # | | ??????????? + ^ ###?# !![ # | | ??????????? # "#?# """ " # | | ????????????????# % % " #?# | """ """ # | | ????????????????# """ ""#?# """ """ # | | ????????????????# """"% T#?# # | | ????????????????# """" ""#?# # | | ????????????????# """" ""#?# """"T"""" # | | ????????????????# " ""#?# """"""""""" # | | ????????????????## ###?################## | | ?????????????????# ########### # | | ???????????????+## # # # | | ??????????? # #? # | +----------------------------------------------------+ Best States ------------- Heat Dissipation 127 Energy Generation 44 Energy Capacity 800 Matter Stores 300 Matter Capacity 300 Sight Range 16 Robot Scan Range 15 Terrain Scan Range 16 Terrain Scan Density 10 Armor Coverage 600 Evasion (%) 40 Targeting Accuracy 8 Recoil Reduction 5 Particle Charging 20 Defensive Hacking 10 Authchip Count 2 Item Schematics ----------------- None Robot Schematics ------------------ None Fabricated ------------ Nothing Repaired ---------- Lgt. Treads | 16% | -9/Materials Lgt. Treads | 6% | -9/Materials Lgt. Treads | 66% | -9/Materials Shield Generator | 66% | -9/Materials Imp. Heat Sink | 2% | -9/Materials Deuterium Engine | 9% | -8/Materials Lgt. Treads | 33% | -8/Materials Lgt. Treads | 17% | -6/Factory Studied --------- Wheel | -9/Materials | Hacked Hvy. Assault Rifle | -8/Materials | Hacked Deuterium Engine | -8/Materials | Hacked Alien Tech Used ----------------- None Achievements -------------- Window Shopping Challenges ------------ None Game ------ Seed ShieldMinesnifferHammer Manual? 0 Play Time 01:15:22 Cumulative 256.7 hours Start 2025.11.09 @ 20:43:15 End 2025.11.09 @ 22:04:58 Sessions 1 Manual Loads 0 Difficulty Rogue Special Mode None Game No. 387 Rogue 385 Adventurer 0 Explorer 2 Win Type - Total 5 Types 3/0/1/1/0/0/0/0/0/0 Lore% 55 Gallery% 64 Achievement% 46 Wizard Run 0 Options --------- Layout 2 ASCII 0 Keyboard 1 Movement Arrows Keybinds 0 Fullscreen 1 Font 28/SmallcapsGlow Map View 50x49 Zoom Use 1% Tactical HUD 1 Map Filters NONE Filters NONE Steam 1 RUN: fed928d8-e617-4960-9118-058cfbe04f1d